[Event "Early-Titled-Tuesday-Blitz-February-27-2024"]
[Site "Chess.com"]
[Date "2024.02.27"]
[Round "3"]
[White "SirStrateg"]
[Black "GilbertoHernandezAmura"]
[Result "1-0"]
[WhiteElo "2664"]
[BlackElo "2466"]
[TimeControl "180+1"]
[EndTime "8:27:58 PST"]
[Termination "SirStrateg won by resignation"]

1. d4 {[%clk 0:03:00.9]} 1... c6 {[%clk 0:02:57.3]} 2. Nf3 {[%clk 0:02:56.2]}
2... Nf6 {[%clk 0:02:55.6]} 3. Bf4 {[%clk 0:02:54.4]} 3... g6 {[%clk 0:02:52.6]}
4. e3 {[%clk 0:02:54.3]} 4... Bg7 {[%clk 0:02:52.8]} 5. h3 {[%clk 0:02:54.6]}
5... d5 {[%clk 0:02:48.5]} 6. Nbd2 {[%clk 0:02:52.9]} 6... O-O {[%clk
0:02:42.8]} 7. Be2 {[%clk 0:02:53]} 7... Re8 {[%clk 0:02:40.4]} 8. O-O {[%clk
0:02:52.9]} 8... Nbd7 {[%clk 0:02:40.5]} 9. c4 {[%clk 0:02:52.8]} 9... a5 {[%clk
0:02:08.3]} 10. Rc1 {[%clk 0:02:48.1]} 10... e6 {[%clk 0:01:56.4]} 11. Ne5
{[%clk 0:02:42.4]} 11... Ne4 {[%clk 0:01:45]} 12. Nxe4 {[%clk 0:02:38.5]} 12...
dxe4 {[%clk 0:01:36.3]} 13. Qc2 {[%clk 0:02:21.6]} 13... f5 {[%clk 0:01:18.4]}
14. Rfd1 {[%clk 0:02:09]} 14... g5 {[%clk 0:01:01.8]} 15. Bh2 {[%clk 0:02:08]}
15... Qf6 {[%clk 0:00:51.3]} 16. a3 {[%clk 0:01:48.1]} 16... a4 {[%clk
0:00:46.3]} 17. c5 {[%clk 0:01:38]} 17... Nxe5 {[%clk 0:00:39.2]} 18. dxe5
{[%clk 0:01:32.6]} 18... Qg6 {[%clk 0:00:35.4]} 19. Rd4 {[%clk 0:01:25.6]} 19...
Rf8 {[%clk 0:00:33.3]} 20. Rcd1 {[%clk 0:01:10.3]} 20... Ra5 {[%clk 0:00:16.4]}
21. Rd8 {[%clk 0:00:59.3]} 21... Ra8 {[%clk 0:00:13.7]} 22. R1d4 {[%clk
0:00:53.6]} 22... h5 {[%clk 0:00:12.1]} 23. Bc4 {[%clk 0:00:34.9]} 23... Kh7
{[%clk 0:00:11]} 24. Qd1 {[%clk 0:00:26.3]} 24... Rxd8 {[%clk 0:00:05.7]} 25.
Rxd8 {[%clk 0:00:25.9]} 25... Qf7 {[%clk 0:00:03.8]} 26. Qd6 {[%clk 0:00:22.4]}
26... f4 {[%clk 0:00:03.8]} 27. exf4 {[%clk 0:00:17.3]} 27... gxf4 {[%clk
0:00:04]} 28. Kf1 {[%clk 0:00:16.2]} 28... e3 {[%clk 0:00:03.8]} 29. Bd3+ {[%clk
0:00:16]} 29... Kh6 {[%clk 0:00:04]} 30. Ke2 {[%clk 0:00:14.4]} 30... exf2
{[%clk 0:00:03.6]} 31. Kxf2 {[%clk 0:00:14.9]} 31... h4 {[%clk 0:00:02.1]} 32.
Qd4 {[%clk 0:00:13.9]} 32... Qh5 {[%clk 0:00:01.8]} 33. Bxf4+ {[%clk 0:00:13.8]}
33... Qg5 {[%clk 0:00:02.7]} 34. Bxg5+ {[%clk 0:00:14.2]} 34... Kxg5 {[%clk
0:00:03.6]} 35. Qg4+ {[%clk 0:00:14.6]} 1-0

[Event "Early-Titled-Tuesday-Blitz-February-27-2024"]
[Site "Chess.com"]
[Date "2024.02.27"]
[Round "3"]
[White "Mikhail_Golubev"]
[Black "SARGISMV"]
[Result "1/2-1/2"]
[WhiteElo "2612"]
[BlackElo "2451"]
[TimeControl "180+1"]
[EndTime "8:27:59 PST"]
[Termination "Game drawn by repetition"]

1. e4 {[%clk 0:03:00.9]} 1... e6 {[%clk 0:02:58.2]} 2. d4 {[%clk 0:03:00.2]}
2... d5 {[%clk 0:02:58.6]} 3. Nc3 {[%clk 0:03:00.8]} 3... Bb4 {[%clk 0:02:58.2]}
4. e5 {[%clk 0:03:00.6]} 4... c5 {[%clk 0:02:56.9]} 5. a3 {[%clk 0:03:00.1]}
5... Bxc3+ {[%clk 0:02:57.6]} 6. bxc3 {[%clk 0:03:00.7]} 6... Ne7 {[%clk
0:02:58.4]} 7. a4 {[%clk 0:03:00.7]} 7... Qc7 {[%clk 0:02:52.6]} 8. Nf3 {[%clk
0:02:59.4]} 8... h6 {[%clk 0:02:52.8]} 9. a5 {[%clk 0:02:44.5]} 9... Nbc6 {[%clk
0:02:34.3]} 10. a6 {[%clk 0:02:29.3]} 10... bxa6 {[%clk 0:02:32.6]} 11. Bd3
{[%clk 0:02:05.2]} 11... cxd4 {[%clk 0:02:28]} 12. cxd4 {[%clk 0:02:05.8]} 12...
Nb4 {[%clk 0:02:26.6]} 13. O-O {[%clk 0:01:59.3]} 13... Bd7 {[%clk 0:02:15]} 14.
Qd2 {[%clk 0:01:54.2]} 14... Nxd3 {[%clk 0:01:53.8]} 15. cxd3 {[%clk 0:01:53.3]}
15... Bb5 {[%clk 0:01:54]} 16. Ba3 {[%clk 0:01:51.4]} 16... O-O {[%clk
0:01:53.3]} 17. g4 {[%clk 0:01:00.1]} 17... Rfc8 {[%clk 0:01:45.1]} 18. Bd6
{[%clk 0:00:49.3]} 18... Qd8 {[%clk 0:01:28.6]} 19. h4 {[%clk 0:00:39.1]} 19...
Ng6 {[%clk 0:01:18.3]} 20. h5 {[%clk 0:00:37]} 20... Nh4 {[%clk 0:01:18.1]} 21.
Nh2 {[%clk 0:00:34]} 21... Qg5 {[%clk 0:00:55.5]} 22. f4 {[%clk 0:00:31.1]}
22... Qd8 {[%clk 0:00:45.8]} 23. Kf2 {[%clk 0:00:25.8]} 23... Rc6 {[%clk
0:00:38.2]} 24. Kg3 {[%clk 0:00:24.2]} 24... Rac8 {[%clk 0:00:37.3]} 25. Rfc1
{[%clk 0:00:23.2]} 25... Rxc1 {[%clk 0:00:32.6]} 26. Rxc1 {[%clk 0:00:24.1]}
26... Rxc1 {[%clk 0:00:31.2]} 27. Qxc1 {[%clk 0:00:25]} 27... Bxd3 {[%clk
0:00:31.4]} 28. Qc5 {[%clk 0:00:23.2]} 28... g5 {[%clk 0:00:20.3]} 29. Be7
{[%clk 0:00:18.1]} 29... Qb8 {[%clk 0:00:17]} 30. fxg5 {[%clk 0:00:17.8]} 30...
Qb2 {[%clk 0:00:13.1]} 31. gxh6 {[%clk 0:00:04.5]} 31... Qg2+ {[%clk 0:00:12.3]}
32. Kxh4 {[%clk 0:00:04.6]} 32... Qxh2+ {[%clk 0:00:12.7]} 33. Kg5 {[%clk
0:00:04.9]} 33... Qd2+ {[%clk 0:00:10.8]} 34. Kh4 {[%clk 0:00:05.1]} 34... Qh2+
{[%clk 0:00:10.2]} 35. Kg5 {[%clk 0:00:05.4]} 35... Qd2+ {[%clk 0:00:10.6]} 36.
Kh4 {[%clk 0:00:05.7]} 36... Qh2+ {[%clk 0:00:10.4]} 1/2-1/2

[Event "Early-Titled-Tuesday-Blitz-February-27-2024"]
[Site "Chess.com"]
[Date "2024.02.27"]
[Round "3"]
[White "Matols"]
[Black "GMG"]
[Result "1-0"]
[WhiteElo "2398"]
[BlackElo "2680"]
[TimeControl "180+1"]
[EndTime "8:28:00 PST"]
[Termination "Matols won by resignation"]

1. d4 {[%clk 0:03:00.9]} 1... f5 {[%clk 0:02:58.7]} 2. Nf3 {[%clk 0:02:59.8]}
2... Nf6 {[%clk 0:02:58.8]} 3. g3 {[%clk 0:03:00.4]} 3... e6 {[%clk 0:02:59.4]}
4. Bg2 {[%clk 0:03:00.9]} 4... d5 {[%clk 0:03:00.2]} 5. O-O {[%clk 0:02:58.9]}
5... Bd6 {[%clk 0:03:00.8]} 6. c4 {[%clk 0:02:58.7]} 6... O-O {[%clk 0:03:00.6]}
7. b3 {[%clk 0:02:54.7]} 7... b6 {[%clk 0:02:58.9]} 8. Ba3 {[%clk 0:02:53.6]}
8... Ne4 {[%clk 0:02:58.2]} 9. Bxd6 {[%clk 0:02:52.4]} 9... Qxd6 {[%clk
0:02:59.1]} 10. Nbd2 {[%clk 0:02:49.1]} 10... Nd7 {[%clk 0:02:58.5]} 11. Qc2
{[%clk 0:02:46.8]} 11... Bb7 {[%clk 0:02:57.6]} 12. e3 {[%clk 0:02:44.8]} 12...
Rac8 {[%clk 0:02:56.1]} 13. cxd5 {[%clk 0:02:43.1]} 13... exd5 {[%clk
0:02:55.4]} 14. Rfd1 {[%clk 0:02:39.9]} 14... Rfd8 {[%clk 0:02:53]} 15. Rac1
{[%clk 0:02:38.8]} 15... h6 {[%clk 0:02:44.3]} 16. Qb2 {[%clk 0:02:34.8]} 16...
c5 {[%clk 0:02:37.6]} 17. dxc5 {[%clk 0:02:31.1]} 17... bxc5 {[%clk 0:02:38.5]}
18. Nc4 {[%clk 0:02:26]} 18... Qe6 {[%clk 0:02:33.4]} 19. Nce5 {[%clk
0:02:08.3]} 19... Ndf6 {[%clk 0:02:27.7]} 20. Rc2 {[%clk 0:01:53.2]} 20... Kh7
{[%clk 0:02:19.3]} 21. Nd3 {[%clk 0:01:48.4]} 21... g5 {[%clk 0:02:15]} 22. h4
{[%clk 0:01:36.1]} 22... Ba6 {[%clk 0:02:07.8]} 23. hxg5 {[%clk 0:01:31]} 23...
hxg5 {[%clk 0:02:08.7]} 24. Nxc5 {[%clk 0:01:27.7]} 24... Rxc5 {[%clk 0:02:03]}
25. Rxc5 {[%clk 0:01:26.8]} 25... Kg6 {[%clk 0:01:58.8]} 26. Rc2 {[%clk
0:01:18]} 26... Rd6 {[%clk 0:01:53.3]} 27. Nd4 {[%clk 0:01:16.9]} 27... Qe7
{[%clk 0:01:45.5]} 28. Bh3 {[%clk 0:01:06.1]} 28... g4 {[%clk 0:01:44.2]} 29.
Bg2 {[%clk 0:01:05.5]} 29... Qh7 {[%clk 0:01:36.1]} 30. Ne2 {[%clk 0:01:03.8]}
30... Qe7 {[%clk 0:01:25.6]} 31. Nf4+ {[%clk 0:01:03.4]} 31... Kg5 {[%clk
0:01:24]} 32. Qd4 {[%clk 0:00:58.8]} 32... Bb7 {[%clk 0:01:02]} 33. Rdc1 {[%clk
0:00:58]} 33... Rd7 {[%clk 0:01:02.1]} 34. Bf1 {[%clk 0:00:46.9]} 34... a6
{[%clk 0:00:58.6]} 35. b4 {[%clk 0:00:45.3]} 35... Qe8 {[%clk 0:00:53.6]} 36. b5
{[%clk 0:00:44.5]} 36... Rh7 {[%clk 0:00:52.7]} 37. bxa6 {[%clk 0:00:41.8]}
37... Qh8 {[%clk 0:00:49.5]} 38. Bg2 {[%clk 0:00:37.5]} 38... Bxa6 {[%clk
0:00:49.7]} 39. Rc7 {[%clk 0:00:31]} 39... Rxc7 {[%clk 0:00:46.6]} 40. Rxc7
{[%clk 0:00:31.9]} 40... Qb8 {[%clk 0:00:47]} 41. Ne6+ {[%clk 0:00:28]} 41...
Kg6 {[%clk 0:00:44.3]} 42. Rc1 {[%clk 0:00:25]} 42... Qd6 {[%clk 0:00:22.2]} 43.
Nf4+ {[%clk 0:00:24.4]} 43... Kf7 {[%clk 0:00:22.2]} 44. Qa7+ {[%clk 0:00:24]}
1-0

[Event "Early-Titled-Tuesday-Blitz-February-27-2024"]
[Site "Chess.com"]
[Date "2024.02.27"]
[Round "3"]
[White "jk13"]
[Black "MetiForce"]
[Result "1-0"]
[WhiteElo "2701"]
[BlackElo "2889"]
[TimeControl "180+1"]
[EndTime "8:28:01 PST"]
[Termination "jk13 won on time"]

1. e4 {[%clk 0:03:00.9]} 1... c5 {[%clk 0:02:51.2]} 2. c3 {[%clk 0:03:01.2]}
2... Nf6 {[%clk 0:02:48.7]} 3. e5 {[%clk 0:03:01.6]} 3... Nd5 {[%clk 0:02:46.5]}
4. Bc4 {[%clk 0:03:02.3]} 4... e6 {[%clk 0:02:44.2]} 5. Nf3 {[%clk 0:03:02]}
5... d6 {[%clk 0:02:43.9]} 6. d4 {[%clk 0:03:02.3]} 6... cxd4 {[%clk 0:02:41.5]}
7. cxd4 {[%clk 0:03:03.2]} 7... Nc6 {[%clk 0:02:38.2]} 8. Qe2 {[%clk 0:03:02.7]}
8... dxe5 {[%clk 0:02:34.2]} 9. dxe5 {[%clk 0:03:02.4]} 9... Bb4+ {[%clk
0:02:31.4]} 10. Nbd2 {[%clk 0:03:02.6]} 10... O-O {[%clk 0:02:28.1]} 11. O-O
{[%clk 0:03:02.5]} 11... b6 {[%clk 0:02:08.4]} 12. Qe4 {[%clk 0:02:52.2]} 12...
Nce7 {[%clk 0:01:51.2]} 13. a3 {[%clk 0:02:19.2]} 13... Bxd2 {[%clk 0:01:47.9]}
14. Bxd2 {[%clk 0:02:20.1]} 14... Bb7 {[%clk 0:00:48.8]} 15. Qg4 {[%clk
0:02:20.2]} 15... Nf5 {[%clk 0:00:35.2]} 16. Rfe1 {[%clk 0:02:06.7]} 16... Rc8
{[%clk 0:00:33]} 17. Bg5 {[%clk 0:01:59.1]} 17... Qc7 {[%clk 0:00:23.1]} 18. Bd3
{[%clk 0:01:58.2]} 18... h6 {[%clk 0:00:19.8]} 19. Bd2 {[%clk 0:01:49.3]} 19...
Nde7 {[%clk 0:00:06.8]} 20. Rad1 {[%clk 0:01:33.5]} 20... Rfd8 {[%clk
0:00:06.9]} 21. Bc3 {[%clk 0:01:29.2]} 21... Rd7 {[%clk 0:00:06.8]} 22. Bb5
{[%clk 0:01:24.5]} 22... Rxd1 {[%clk 0:00:06.6]} 23. Rxd1 {[%clk 0:01:25.4]}
23... Rd8 {[%clk 0:00:07.5]} 24. Re1 {[%clk 0:01:24.5]} 24... a6 {[%clk
0:00:07.1]} 25. Bf1 {[%clk 0:01:18.7]} 25... Ng6 {[%clk 0:00:07.4]} 26. g3
{[%clk 0:00:57.1]} 26... b5 {[%clk 0:00:07.8]} 27. h4 {[%clk 0:00:56]} 27...
Nge7 {[%clk 0:00:07.7]} 28. Bg2 {[%clk 0:00:52.8]} 28... Nd5 {[%clk 0:00:07.5]}
29. Bd2 {[%clk 0:00:53.4]} 29... Rd7 {[%clk 0:00:03.1]} 30. Rc1 {[%clk
0:00:51.9]} 30... Qd8 {[%clk 0:00:03.4]} 31. h5 {[%clk 0:00:47.8]} 31... Nde7
{[%clk 0:00:03.9]} 32. Bb4 {[%clk 0:00:42]} 32... Kh8 {[%clk 0:00:04.3]} 33. Kh2
{[%clk 0:00:41.1]} 33... Nc6 {[%clk 0:00:04.6]} 34. Bc3 {[%clk 0:00:39.2]} 34...
Nce7 {[%clk 0:00:04.6]} 35. Re1 {[%clk 0:00:35.1]} 35... Kg8 {[%clk 0:00:03]}
36. Bb4 {[%clk 0:00:30.8]} 36... Rd3 {[%clk 0:00:03.1]} 37. Re2 {[%clk
0:00:24.7]} 1-0

[Event "Early-Titled-Tuesday-Blitz-February-27-2024"]
[Site "Chess.com"]
[Date "2024.02.27"]
[Round "3"]
[White "djano"]
[Black "MasterKroket"]
[Result "0-1"]
[WhiteElo "2618"]
[BlackElo "2463"]
[TimeControl "180+1"]
[EndTime "8:28:01 PST"]
[Termination "MasterKroket won by resignation"]

1. e4 {[%clk 0:03:00.9]} 1... e5 {[%clk 0:02:52.7]} 2. Nf3 {[%clk 0:03:00]} 2...
Nc6 {[%clk 0:02:53.1]} 3. d4 {[%clk 0:02:59.7]} 3... exd4 {[%clk 0:02:53.2]} 4.
Bc4 {[%clk 0:03:00.3]} 4... Nf6 {[%clk 0:02:52.8]} 5. Ng5 {[%clk 0:03:00.2]}
5... d5 {[%clk 0:02:48.3]} 6. exd5 {[%clk 0:03:01.1]} 6... Ne5 {[%clk
0:02:37.5]} 7. Qxd4 {[%clk 0:02:56.1]} 7... Nxc4 {[%clk 0:02:36.3]} 8. Qxc4
{[%clk 0:02:57]} 8... Qxd5 {[%clk 0:02:17]} 9. Qe2+ {[%clk 0:02:55.5]} 9... Be7
{[%clk 0:02:15.6]} 10. O-O {[%clk 0:02:54.4]} 10... h6 {[%clk 0:02:09.5]} 11.
Re1 {[%clk 0:02:44.2]} 11... Qd8 {[%clk 0:02:08.1]} 12. Nf3 {[%clk 0:02:26]}
12... Bg4 {[%clk 0:02:08.2]} 13. Qb5+ {[%clk 0:02:22]} 13... Nd7 {[%clk
0:01:49.5]} 14. Qxb7 {[%clk 0:02:14.4]} 14... O-O {[%clk 0:01:43.8]} 15. Qe4
{[%clk 0:02:05]} 15... Bxf3 {[%clk 0:01:18.6]} 16. Qxe7 {[%clk 0:02:04.3]} 16...
Qxe7 {[%clk 0:01:12.2]} 17. Rxe7 {[%clk 0:02:05.2]} 17... Rfe8 {[%clk
0:01:10.5]} 18. Rxe8+ {[%clk 0:01:58.6]} 18... Rxe8 {[%clk 0:01:10.1]} 19. gxf3
{[%clk 0:01:57.6]} 19... Re1+ {[%clk 0:01:10.3]} 20. Kg2 {[%clk 0:01:55.3]}
20... Rxc1 {[%clk 0:01:11]} 21. f4 {[%clk 0:01:35.5]} 21... Nb6 {[%clk
0:01:00.7]} 22. Kf3 {[%clk 0:01:32.1]} 22... f5 {[%clk 0:00:45.7]} 23. Ke2
{[%clk 0:01:31]} 23... Rxc2+ {[%clk 0:00:46.1]} 24. Kd3 {[%clk 0:01:28.2]} 24...
Rc1 {[%clk 0:00:31.4]} 25. Kd2 {[%clk 0:01:28.2]} 25... Rf1 {[%clk 0:00:30.4]}
26. b3 {[%clk 0:01:07.4]} 26... Nd5 {[%clk 0:00:27]} 27. a3 {[%clk 0:01:01.9]}
27... Nxf4 {[%clk 0:00:23.6]} 28. Kc2 {[%clk 0:00:55.2]} 28... Nd5 {[%clk
0:00:19.7]} 29. b4 {[%clk 0:00:51.5]} 29... Kf7 {[%clk 0:00:19.9]} 30. Kb2
{[%clk 0:00:50.4]} 30... Ke6 {[%clk 0:00:17.3]} 31. f4 {[%clk 0:00:46]} 31...
Rxf4 {[%clk 0:00:15.9]} 32. Nd2 {[%clk 0:00:45.6]} 32... Rf2 {[%clk 0:00:15.7]}
33. Re1+ {[%clk 0:00:46]} 33... Kf6 {[%clk 0:00:14.6]} 34. Kc1 {[%clk
0:00:46.6]} 34... Rxh2 {[%clk 0:00:14.4]} 35. Re8 {[%clk 0:00:46.9]} 35... g5
{[%clk 0:00:14.1]} 36. Nf3 {[%clk 0:00:46.7]} 36... Rf2 {[%clk 0:00:13.6]} 37.
Nd4 {[%clk 0:00:46.8]} 37... g4 {[%clk 0:00:12.5]} 38. Re6+ {[%clk 0:00:46.1]}
38... Kg5 {[%clk 0:00:12.6]} 39. Re5 {[%clk 0:00:44.6]} 39... Nc3 {[%clk
0:00:11.9]} 40. Re7 {[%clk 0:00:40.5]} 40... g3 {[%clk 0:00:11.7]} 41. Rg7+
{[%clk 0:00:39.5]} 41... Kh4 {[%clk 0:00:11.3]} 42. b5 {[%clk 0:00:33.6]} 42...
Ne2+ {[%clk 0:00:11.4]} 43. Kd2 {[%clk 0:00:31.7]} 43... Nxd4+ {[%clk
0:00:11.2]} 44. Ke3 {[%clk 0:00:32.6]} 44... Ne6 {[%clk 0:00:10.9]} 45. Rg6
{[%clk 0:00:32.7]} 45... Ng5 {[%clk 0:00:10.3]} 46. Rxh6+ {[%clk 0:00:32.7]}
46... Kg4 {[%clk 0:00:10.8]} 47. Rh8 {[%clk 0:00:31.4]} 47... Ra2 {[%clk
0:00:10.5]} 48. a4 {[%clk 0:00:31.5]} 48... g2 {[%clk 0:00:10.8]} 49. Kd4 {[%clk
0:00:30.9]} 49... g1=Q+ {[%clk 0:00:11.1]} 50. Ke5 {[%clk 0:00:31.8]} 0-1

[Event "Early-Titled-Tuesday-Blitz-February-27-2024"]
[Site "Chess.com"]
[Date "2024.02.27"]
[Round "3"]
[White "Kezin_Roman"]
[Black "Vesapesa"]
[Result "1-0"]
[WhiteElo "2786"]
[BlackElo "2241"]
[TimeControl "180+1"]
[EndTime "8:28:05 PST"]
[Termination "Kezin_Roman won on time"]

1. b3 {[%clk 0:03:00.5]} 1... Nf6 {[%clk 0:02:54.8]} 2. Bb2 {[%clk 0:03:00.9]}
2... d5 {[%clk 0:02:55.2]} 3. e3 {[%clk 0:03:01]} 3... g6 {[%clk 0:02:54.9]} 4.
c4 {[%clk 0:03:00.5]} 4... e6 {[%clk 0:02:49.9]} 5. Nf3 {[%clk 0:03:00.1]} 5...
Bg7 {[%clk 0:02:49.4]} 6. Be2 {[%clk 0:02:59.7]} 6... O-O {[%clk 0:02:48.8]} 7.
O-O {[%clk 0:03:00]} 7... b6 {[%clk 0:02:48.4]} 8. Nc3 {[%clk 0:02:57.1]} 8...
Bb7 {[%clk 0:02:48.6]} 9. Rc1 {[%clk 0:02:57.6]} 9... c5 {[%clk 0:02:47.5]} 10.
cxd5 {[%clk 0:02:57.1]} 10... exd5 {[%clk 0:02:47.3]} 11. d4 {[%clk 0:02:57.5]}
11... Nbd7 {[%clk 0:02:37.2]} 12. dxc5 {[%clk 0:02:57.6]} 12... Nxc5 {[%clk
0:02:35.2]} 13. Rc2 {[%clk 0:02:51.2]} 13... Nfe4 {[%clk 0:02:30.6]} 14. Qa1
{[%clk 0:02:50]} 14... Rc8 {[%clk 0:02:17.7]} 15. Rfc1 {[%clk 0:02:47.8]} 15...
Nxc3 {[%clk 0:02:06.8]} 16. Bxc3 {[%clk 0:02:47.7]} 16... Bxc3 {[%clk
0:02:04.8]} 17. Rxc3 {[%clk 0:02:48.6]} 17... Qe7 {[%clk 0:01:53.3]} 18. Nd4
{[%clk 0:02:41.6]} 18... Ne4 {[%clk 0:01:49.6]} 19. Rxc8 {[%clk 0:02:41.3]}
19... Rxc8 {[%clk 0:01:50.4]} 20. Rxc8+ {[%clk 0:02:40.9]} 20... Bxc8 {[%clk
0:01:51.3]} 21. Bf3 {[%clk 0:02:41]} 21... Qc5 {[%clk 0:01:45.6]} 22. Bxe4
{[%clk 0:02:39.1]} 22... dxe4 {[%clk 0:01:46.5]} 23. h3 {[%clk 0:02:35.2]} 23...
Ba6 {[%clk 0:01:42.6]} 24. Qb2 {[%clk 0:02:33.9]} 24... Bd3 {[%clk 0:01:41.2]}
25. b4 {[%clk 0:02:29.1]} 25... Qc4 {[%clk 0:01:39.5]} 26. b5 {[%clk 0:02:27.4]}
26... a6 {[%clk 0:01:22.6]} 27. bxa6 {[%clk 0:02:20.6]} 27... Qxa6 {[%clk
0:01:22.4]} 28. Nc6 {[%clk 0:02:20.4]} 28... Qc4 {[%clk 0:01:05.8]} 29. Qxb6
{[%clk 0:02:09.2]} 29... Qxa2 {[%clk 0:00:59.8]} 30. Qd8+ {[%clk 0:02:05.6]}
30... Kg7 {[%clk 0:00:58.2]} 31. Qd4+ {[%clk 0:02:06]} 31... f6 {[%clk
0:00:49.4]} 32. Nb4 {[%clk 0:02:02.7]} 32... Qb1+ {[%clk 0:00:46.6]} 33. Kh2
{[%clk 0:02:02.3]} 33... Qb3 {[%clk 0:00:24.2]} 34. Qd6 {[%clk 0:01:30.1]} 34...
Qa3 {[%clk 0:00:11.5]} 35. Qe7+ {[%clk 0:01:18.1]} 35... Kg8 {[%clk 0:00:11.2]}
36. Qe8+ {[%clk 0:01:09.3]} 36... Kg7 {[%clk 0:00:10.8]} 37. Qd7+ {[%clk
0:01:07.2]} 37... Kg8 {[%clk 0:00:06.9]} 38. Qd8+ {[%clk 0:01:07]} 38... Kg7
{[%clk 0:00:06.9]} 39. Nd5 {[%clk 0:01:07.4]} 39... Qf8 {[%clk 0:00:03.4]} 40.
Qxf8+ {[%clk 0:01:04.9]} 40... Kxf8 {[%clk 0:00:04.3]} 41. Nxf6 {[%clk
0:01:05.3]} 41... Kg7 {[%clk 0:00:04.4]} 42. Nd7 {[%clk 0:01:03.3]} 42... Kf7
{[%clk 0:00:03.5]} 43. g4 {[%clk 0:00:57.3]} 43... g5 {[%clk 0:00:03.2]} 44. Kg3
{[%clk 0:00:56.9]} 44... h6 {[%clk 0:00:03.2]} 45. h4 {[%clk 0:00:56.6]} 45...
Ke6 {[%clk 0:00:02.9]} 46. Nc5+ {[%clk 0:00:55.9]} 46... Kd5 {[%clk 0:00:02.4]}
47. Nb3 {[%clk 0:00:47.3]} 47... Bc2 {[%clk 0:00:01.4]} 48. Nd4 {[%clk
0:00:47.5]} 1-0

[Event "Early-Titled-Tuesday-Blitz-February-27-2024"]
[Site "Chess.com"]
[Date "2024.02.27"]
[Round "3"]
[White "Schattman"]
[Black "Austen48"]
[Result "1/2-1/2"]
[WhiteElo "2430"]
[BlackElo "2251"]
[TimeControl "180+1"]
[EndTime "8:28:05 PST"]
[Termination "Game drawn by repetition"]

1. f4 {[%clk 0:02:02.5]} 1... d5 {[%clk 0:02:55.6]} 2. Nf3 {[%clk 0:02:01.9]}
2... Nf6 {[%clk 0:02:54.8]} 3. g3 {[%clk 0:02:02.3]} 3... c5 {[%clk 0:02:54.3]}
4. Bg2 {[%clk 0:02:02.6]} 4... Nc6 {[%clk 0:02:54.6]} 5. Ne5 {[%clk 0:02:02.2]}
5... g6 {[%clk 0:02:53.9]} 6. Nxc6 {[%clk 0:02:01.1]} 6... bxc6 {[%clk
0:02:53.1]} 7. O-O {[%clk 0:02:02]} 7... Bg7 {[%clk 0:02:53.1]} 8. c4 {[%clk
0:02:00.4]} 8... O-O {[%clk 0:02:51.7]} 9. d3 {[%clk 0:02:00.7]} 9... Rb8 {[%clk
0:02:49.9]} 10. Nc3 {[%clk 0:01:58.1]} 10... h5 {[%clk 0:02:45.9]} 11. h3 {[%clk
0:01:55]} 11... Qc7 {[%clk 0:02:30.9]} 12. Rb1 {[%clk 0:01:50.4]} 12... Rd8
{[%clk 0:02:28.6]} 13. Qc2 {[%clk 0:01:48.8]} 13... Rb7 {[%clk 0:02:00.8]} 14.
b3 {[%clk 0:01:43.8]} 14... e5 {[%clk 0:01:43.8]} 15. fxe5 {[%clk 0:01:36.7]}
15... Qxe5 {[%clk 0:01:43.7]} 16. Bf4 {[%clk 0:01:35.8]} 16... Qe6 {[%clk
0:01:38.3]} 17. Na4 {[%clk 0:01:28.4]} 17... Bf8 {[%clk 0:01:33]} 18. Bg5 {[%clk
0:01:21.9]} 18... Be7 {[%clk 0:01:24.2]} 19. Bf4 {[%clk 0:00:50.3]} 19... Re8
{[%clk 0:01:21.8]} 20. Rbe1 {[%clk 0:00:49.5]} 20... dxc4 {[%clk 0:01:07.5]} 21.
dxc4 {[%clk 0:00:45.1]} 21... Bf8 {[%clk 0:01:00.9]} 22. e4 {[%clk 0:00:41.1]}
22... Nd7 {[%clk 0:00:44.9]} 23. Kh2 {[%clk 0:00:38.7]} 23... Ne5 {[%clk
0:00:40.8]} 24. Nb2 {[%clk 0:00:32]} 24... Rd7 {[%clk 0:00:36.5]} 25. Rd1 {[%clk
0:00:30.7]} 25... Red8 {[%clk 0:00:34.3]} 26. Rxd7 {[%clk 0:00:29.4]} 26... Rxd7
{[%clk 0:00:33.8]} 27. Rd1 {[%clk 0:00:29.5]} 27... Bg7 {[%clk 0:00:27.2]} 28.
Nd3 {[%clk 0:00:26.4]} 28... Nxd3 {[%clk 0:00:23.2]} 29. Rxd3 {[%clk 0:00:26.5]}
29... Rxd3 {[%clk 0:00:18]} 30. Qxd3 {[%clk 0:00:27.4]} 30... Kh7 {[%clk
0:00:18.2]} 31. Qd6 {[%clk 0:00:17.1]} 31... Bd4 {[%clk 0:00:17.9]} 32. Qxe6
{[%clk 0:00:14.1]} 32... Bxe6 {[%clk 0:00:17.9]} 33. Bb8 {[%clk 0:00:14.2]}
33... a6 {[%clk 0:00:17.2]} 34. Bf3 {[%clk 0:00:14]} 34... Bc8 {[%clk
0:00:17.4]} 35. Bd6 {[%clk 0:00:12.6]} 35... Kg7 {[%clk 0:00:17.6]} 36. h4
{[%clk 0:00:12.9]} 36... f6 {[%clk 0:00:17.4]} 37. Kg2 {[%clk 0:00:12.5]} 37...
Kf7 {[%clk 0:00:18]} 38. Bc7 {[%clk 0:00:12.4]} 38... Ke7 {[%clk 0:00:17.4]} 39.
Ba5 {[%clk 0:00:12]} 39... Be6 {[%clk 0:00:17.2]} 40. Bd2 {[%clk 0:00:11.4]}
40... Kd6 {[%clk 0:00:17.6]} 41. Bf4+ {[%clk 0:00:11.2]} 41... Kd7 {[%clk
0:00:17.7]} 42. Bd2 {[%clk 0:00:11]} 42... Kd6 {[%clk 0:00:17.5]} 43. Bf4+
{[%clk 0:00:10.6]} 43... Kd7 {[%clk 0:00:17.5]} 44. Bd2 {[%clk 0:00:10.6]} 44...
Kd6 {[%clk 0:00:17.4]} 1/2-1/2